[Event "*** Titled Tuesday 3|2 Blitz (Early)"]
[Site "Chess.com"]
[Date "2016.12.06"]
[Round "2"]
[White "yurisolo"]
[Black "avto24"]
[Result "0-1"]
[WhiteElo "2469"]
[BlackElo "2304"]
[TimeControl "180+2"]
[EndTime "11:18:17 PST"]
[Termination "avto24 won by resignation"]

1. e4 {[%clk 0:02:59.6]} 1... d5 {[%clk 0:03:00.3]} 2. exd5 {[%clk 0:03:00.5]}
2... Nf6 {[%clk 0:03:01.5]} 3. Nf3 {[%clk 0:03:00.7]} 3... Nxd5 {[%clk
0:03:02.4]} 4. d4 {[%clk 0:03:02.2]} 4... g6 {[%clk 0:03:03.5]} 5. c4 {[%clk
0:03:00]} 5... Nb6 {[%clk 0:03:04.1]} 6. h3 {[%clk 0:03:01.5]} 6... Bg7 {[%clk
0:03:05.1]} 7. Be3 {[%clk 0:03:02.8]} 7... O-O {[%clk 0:03:06.2]} 8. Nc3 {[%clk
0:03:04]} 8... Nc6 {[%clk 0:03:07.6]} 9. Be2 {[%clk 0:03:03.4]} 9... e5 {[%clk
0:03:08.8]} 10. dxe5 {[%clk 0:03:00.7]} 10... Nxe5 {[%clk 0:03:09.2]} 11. O-O
{[%clk 0:02:53.4]} 11... Nbxc4 {[%clk 0:03:04.6]} 12. Qxd8 {[%clk 0:02:51.1]}
12... Rxd8 {[%clk 0:03:03.4]} 13. Bg5 {[%clk 0:02:52.7]} 13... Re8 {[%clk
0:02:53.2]} 14. Nb5 {[%clk 0:02:50.3]} 14... Nxf3+ {[%clk 0:02:38.3]} 15. Bxf3
{[%clk 0:02:49.8]} 15... Be5 {[%clk 0:02:39.4]} 16. b3 {[%clk 0:02:32.8]} 16...
Nb6 {[%clk 0:02:23.9]} 17. Rae1 {[%clk 0:02:15.3]} 17... Bd7 {[%clk 0:02:20.1]}
18. Na3 {[%clk 0:02:15.1]} 18... c6 {[%clk 0:02:14.5]} 19. Re2 {[%clk
0:02:08.9]} 19... Bd6 {[%clk 0:02:04.8]} 20. Nc4 {[%clk 0:02:09.2]} 20... Nxc4
{[%clk 0:02:00.9]} 21. bxc4 {[%clk 0:02:11.1]} 21... Rxe2 {[%clk 0:02:01.3]} 22.
Bxe2 {[%clk 0:02:11.8]} 22... Re8 {[%clk 0:02:02.8]} 23. Rd1 {[%clk 0:02:09.8]}
23... Re6 {[%clk 0:01:31.8]} 24. c5 {[%clk 0:01:58.8]} 24... Bxc5 {[%clk
0:01:30.3]} 25. Bc4 {[%clk 0:01:59.8]} 25... Rd6 {[%clk 0:01:27.7]} 26. Rb1
{[%clk 0:01:55.6]} 26... b5 {[%clk 0:01:27]} 27. Be7 {[%clk 0:01:56]} 27... bxc4
{[%clk 0:01:05.6]} 28. Bxd6 {[%clk 0:01:48.9]} 28... Bxd6 {[%clk 0:01:06.3]} 29.
Rd1 {[%clk 0:01:50.8]} 29... c3 {[%clk 0:01:06.7]} 30. Kf1 {[%clk 0:01:44.9]}
30... c2 {[%clk 0:01:03.8]} 31. Rc1 {[%clk 0:01:46.3]} 31... Bf5 {[%clk
0:01:03.8]} 32. g4 {[%clk 0:01:46.2]} 32... Bd3+ {[%clk 0:01:04.4]} 33. Ke1
{[%clk 0:01:47.3]} 33... Bf4 {[%clk 0:01:05.4]} 0-1

[Event "*** Titled Tuesday 3|2 Blitz (Early)"]
[Site "Chess.com"]
[Date "2016.12.06"]
[Round "2"]
[White "Peroncio"]
[Black "VladDobrov"]
[Result "1-0"]
[WhiteElo "2531"]
[BlackElo "2601"]
[TimeControl "180+2"]
[EndTime "11:18:22 PST"]
[Termination "Peroncio won by resignation"]

1. d4 {[%clk 0:03:02]} 1... Nf6 {[%clk 0:02:59.9]} 2. Bg5 {[%clk 0:03:03.1]}
2... e6 {[%clk 0:02:58.6]} 3. e4 {[%clk 0:03:03.7]} 3... h6 {[%clk 0:02:59.7]}
4. Bxf6 {[%clk 0:03:04.5]} 4... Qxf6 {[%clk 0:03:01.6]} 5. c3 {[%clk 0:03:06.1]}
5... d6 {[%clk 0:03:02.3]} 6. Bd3 {[%clk 0:03:05.8]} 6... g6 {[%clk 0:03:03.3]}
7. Ne2 {[%clk 0:03:06.9]} 7... e5 {[%clk 0:03:02.3]} 8. O-O {[%clk 0:03:08]}
8... Nc6 {[%clk 0:03:03.2]} 9. Bb5 {[%clk 0:02:48.2]} 9... a6 {[%clk 0:02:57.5]}
10. Bxc6+ {[%clk 0:02:47.8]} 10... bxc6 {[%clk 0:02:59.4]} 11. f4 {[%clk
0:02:49.5]} 11... exf4 {[%clk 0:02:56.5]} 12. Nxf4 {[%clk 0:02:49.5]} 12... Qe7
{[%clk 0:02:57.1]} 13. Nd2 {[%clk 0:02:43.2]} 13... Bg7 {[%clk 0:02:56.8]} 14.
Qb3 {[%clk 0:02:44.3]} 14... Qg5 {[%clk 0:02:27.9]} 15. Rf2 {[%clk 0:02:24.4]}
15... O-O {[%clk 0:02:24.4]} 16. Raf1 {[%clk 0:02:25.9]} 16... Kh7 {[%clk
0:02:18.2]} 17. Qc4 {[%clk 0:02:03.6]} 17... Bd7 {[%clk 0:02:16.6]} 18. Qd3
{[%clk 0:01:57.7]} 18... f5 {[%clk 0:01:57.2]} 19. Rf3 {[%clk 0:01:47.5]} 19...
Qe7 {[%clk 0:01:44.5]} 20. Nxg6 {[%clk 0:01:43.9]} 20... fxe4 {[%clk 0:00:47.2]}
21. Nxe4 {[%clk 0:01:26.6]} 21... Rxf3 {[%clk 0:00:46.5]} 22. Rxf3 {[%clk
0:01:28.5]} 22... Qe8 {[%clk 0:00:47.3]} 23. Nf6+ {[%clk 0:01:25.1]} 23... Bxf6
{[%clk 0:00:47.1]} 24. Nf8+ {[%clk 0:01:24.8]} 24... Kg7 {[%clk 0:00:46.4]} 25.
Qh7+ {[%clk 0:01:26.7]} 1-0

[Event "*** Titled Tuesday 3|2 Blitz (Early)"]
[Site "Chess.com"]
[Date "2016.12.06"]
[Round "2"]
[White "Ar4uha"]
[Black "Keranke"]
[Result "0-1"]
[WhiteElo "2447"]
[BlackElo "2607"]
[TimeControl "180+2"]
[EndTime "11:18:49 PST"]
[Termination "Keranke won by resignation"]

1. e4 {[%clk 0:03:02]} 1... g6 {[%clk 0:02:58.2]} 2. d4 {[%clk 0:03:02.8]} 2...
Bg7 {[%clk 0:02:59.8]} 3. Nc3 {[%clk 0:03:04.5]} 3... d6 {[%clk 0:03:01.4]} 4.
f4 {[%clk 0:03:03.8]} 4... a6 {[%clk 0:03:02.8]} 5. Nf3 {[%clk 0:03:04.2]} 5...
b5 {[%clk 0:03:04.4]} 6. a3 {[%clk 0:03:05.8]} 6... Nd7 {[%clk 0:03:05.9]} 7. e5
{[%clk 0:03:03.5]} 7... c5 {[%clk 0:03:06.7]} 8. exd6 {[%clk 0:03:04.6]} 8...
exd6 {[%clk 0:03:05.3]} 9. Be2 {[%clk 0:02:57.2]} 9... Ne7 {[%clk 0:03:00.7]}
10. O-O {[%clk 0:02:53.8]} 10... O-O {[%clk 0:03:01.9]} 11. Re1 {[%clk
0:02:47.9]} 11... Bb7 {[%clk 0:03:02.7]} 12. Be3 {[%clk 0:02:44.5]} 12... Nf5
{[%clk 0:03:00.6]} 13. Bf2 {[%clk 0:02:46]} 13... Re8 {[%clk 0:02:55.8]} 14.
dxc5 {[%clk 0:02:45.9]} 14... Nxc5 {[%clk 0:02:51.9]} 15. Nd4 {[%clk 0:02:40.1]}
15... Ne3 {[%clk 0:02:42.4]} 16. Bxe3 {[%clk 0:02:32.6]} 16... Rxe3 {[%clk
0:02:44.3]} 17. Qd2 {[%clk 0:02:20.7]} 17... Qe7 {[%clk 0:02:39]} 18. Nf3 {[%clk
0:01:03.3]} 18... Re8 {[%clk 0:02:16]} 19. Bf1 {[%clk 0:00:39.4]} 19... Bxf3
{[%clk 0:02:15.1]} 20. Rxe3 {[%clk 0:00:40.6]} 20... Qxe3+ {[%clk 0:02:16.7]}
21. Qxe3 {[%clk 0:00:42.2]} 21... Rxe3 {[%clk 0:02:18.5]} 22. gxf3 {[%clk
0:00:32]} 22... Bxc3 {[%clk 0:02:19.4]} 23. bxc3 {[%clk 0:00:30.6]} 23... Rxc3
{[%clk 0:02:21.1]} 24. Rd1 {[%clk 0:00:29.2]} 24... Rxf3 {[%clk 0:02:13.3]} 25.
Rxd6 {[%clk 0:00:29]} 25... Rxa3 {[%clk 0:02:14.5]} 26. f5 {[%clk 0:00:25.9]}
26... gxf5 {[%clk 0:02:13.8]} 27. Rd5 {[%clk 0:00:26.4]} 27... Rc3 {[%clk
0:01:58.8]} 28. Rxf5 {[%clk 0:00:21.5]} 28... Rxc2 {[%clk 0:01:59.1]} 29. Bg2
{[%clk 0:00:23.2]} 29... Ne6 {[%clk 0:01:49]} 30. Rd5 {[%clk 0:00:21.4]} 30...
Rxg2+ {[%clk 0:01:49.2]} 31. Kh1 {[%clk 0:00:20.6]} 31... Rg6 {[%clk 0:01:49.4]}
0-1

[Event "*** Titled Tuesday 3|2 Blitz (Early)"]
[Site "Chess.com"]
[Date "2016.12.06"]
[Round "2"]
[White "pedromartinez91"]
[Black "rubhani"]
[Result "1-0"]
[WhiteElo "2336"]
[BlackElo "2394"]
[TimeControl "180+2"]
[EndTime "11:19:37 PST"]
[Termination "pedromartinez91 won by resignation"]

1. e4 {[%clk 0:03:02]} 1... c5 {[%clk 0:02:59.8]} 2. Nf3 {[%clk 0:03:03]} 2...
d6 {[%clk 0:03:00.5]} 3. Bb5+ {[%clk 0:03:03.8]} 3... Bd7 {[%clk 0:03:00.7]} 4.
Bxd7+ {[%clk 0:03:04.8]} 4... Nxd7 {[%clk 0:03:00.9]} 5. O-O {[%clk 0:03:06.3]}
5... Ngf6 {[%clk 0:03:01.5]} 6. Qe2 {[%clk 0:03:06.2]} 6... e6 {[%clk
0:03:02.1]} 7. c3 {[%clk 0:03:04.7]} 7... Be7 {[%clk 0:03:03]} 8. d4 {[%clk
0:03:05.4]} 8... cxd4 {[%clk 0:03:04.1]} 9. cxd4 {[%clk 0:03:06.2]} 9... d5
{[%clk 0:03:05.5]} 10. Nc3 {[%clk 0:02:53]} 10... dxe4 {[%clk 0:03:05.2]} 11.
Nxe4 {[%clk 0:02:54]} 11... O-O {[%clk 0:03:06]} 12. Rd1 {[%clk 0:02:44.9]}
12... Qb6 {[%clk 0:03:01.9]} 13. Nc3 {[%clk 0:02:43.9]} 13... Rac8 {[%clk
0:03:00.5]} 14. d5 {[%clk 0:02:37.7]} 14... Nc5 {[%clk 0:02:34.6]} 15. dxe6
{[%clk 0:02:18.1]} 15... Nxe6 {[%clk 0:02:33.8]} 16. Be3 {[%clk 0:02:12.2]}
16... Bc5 {[%clk 0:02:31.9]} 17. Na4 {[%clk 0:02:10.4]} 17... Qb4 {[%clk
0:02:19.3]} 18. Nxc5 {[%clk 0:02:09]} 18... Nxc5 {[%clk 0:02:20]} 19. a3 {[%clk
0:02:03]} 19... Qe4 {[%clk 0:02:18.9]} 20. Rd4 {[%clk 0:01:56.7]} 20... Qe6
{[%clk 0:02:16.1]} 21. Rad1 {[%clk 0:01:48.4]} 21... Rfe8 {[%clk 0:02:07.9]} 22.
Qc4 {[%clk 0:01:34.4]} 22... Qf5 {[%clk 0:01:45.9]} 23. Rf4 {[%clk 0:01:30.6]}
23... Qh5 {[%clk 0:00:58.4]} 24. g4 {[%clk 0:01:30.5]} 24... Nxg4 {[%clk
0:00:20.5]} 25. Rxg4 {[%clk 0:01:30.4]} 25... Nd3 {[%clk 0:00:21.7]} 26. Qd4
{[%clk 0:01:20.5]} 26... Ne5 {[%clk 0:00:17.3]} 27. Nxe5 {[%clk 0:01:16.3]}
27... f5 {[%clk 0:00:18.5]} 28. Rg5 {[%clk 0:01:01.8]} 28... Qh3 {[%clk
0:00:17.7]} 1-0

[Event "*** Titled Tuesday 3|2 Blitz (Early)"]
[Site "Chess.com"]
[Date "2016.12.06"]
[Round "2"]
[White "Aguiar94"]
[Black "JohanSalomon"]
[Result "1-0"]
[WhiteElo "2354"]
[BlackElo "2389"]
[TimeControl "180+2"]
[EndTime "11:19:38 PST"]
[Termination "Aguiar94 won by resignation"]

1. e4 {[%clk 0:03:02]} 1... c5 {[%clk 0:02:53.3]} 2. Nf3 {[%clk 0:03:02]} 2...
d6 {[%clk 0:02:54.1]} 3. d4 {[%clk 0:03:03.4]} 3... cxd4 {[%clk 0:02:55.3]} 4.
Nxd4 {[%clk 0:03:05.3]} 4... Nf6 {[%clk 0:02:57]} 5. Nc3 {[%clk 0:03:06.7]} 5...
a6 {[%clk 0:02:58.6]} 6. Be3 {[%clk 0:03:07.7]} 6... e5 {[%clk 0:02:57.8]} 7.
Nb3 {[%clk 0:03:09.2]} 7... Be6 {[%clk 0:02:58.4]} 8. f3 {[%clk 0:03:09.7]} 8...
h5 {[%clk 0:02:58.9]} 9. Qd2 {[%clk 0:03:04.4]} 9... Nbd7 {[%clk 0:02:59.9]} 10.
Nd5 {[%clk 0:02:59.3]} 10... Bxd5 {[%clk 0:03:00.4]} 11. exd5 {[%clk 0:03:01.2]}
11... g6 {[%clk 0:03:01.6]} 12. Na5 {[%clk 0:02:59.1]} 12... Qc7 {[%clk
0:02:53.6]} 13. c4 {[%clk 0:03:00.6]} 13... Bg7 {[%clk 0:02:51.2]} 14. Be2
{[%clk 0:03:01.6]} 14... O-O {[%clk 0:02:51.7]} 15. O-O {[%clk 0:03:02]} 15...
e4 {[%clk 0:02:51.8]} 16. Rac1 {[%clk 0:02:58]} 16... Rfe8 {[%clk 0:02:48.3]}
17. f4 {[%clk 0:02:58]} 17... Ng4 {[%clk 0:02:48]} 18. Bxg4 {[%clk 0:02:58.3]}
18... hxg4 {[%clk 0:02:49.9]} 19. b4 {[%clk 0:02:55.9]} 19... f5 {[%clk
0:02:49.8]} 20. c5 {[%clk 0:02:53.6]} 20... Nf6 {[%clk 0:02:41.8]} 21. c6 {[%clk
0:02:41.9]} 21... bxc6 {[%clk 0:02:38.1]} 22. Rxc6 {[%clk 0:02:40.7]} 22... Qd7
{[%clk 0:02:18.4]} 23. Nc4 {[%clk 0:02:37.3]} 23... Qf7 {[%clk 0:02:15.2]} 24.
Nxd6 {[%clk 0:02:03.7]} 24... Qxd5 {[%clk 0:02:15.9]} 25. Nxe8 {[%clk
0:02:05.3]} 25... Rxe8 {[%clk 0:02:09.7]} 26. Qc2 {[%clk 0:01:53]} 26... Qd3
{[%clk 0:02:01.7]} 27. Qxd3 {[%clk 0:01:35.7]} 27... exd3 {[%clk 0:02:02.8]} 28.
Bd4 {[%clk 0:01:37.3]} 28... Kf7 {[%clk 0:01:17.4]} 29. Rd1 {[%clk 0:01:27.2]}
29... Nd5 {[%clk 0:01:18.5]} 30. Bxg7 {[%clk 0:01:16.9]} 30... Kxg7 {[%clk
0:01:20.4]} 31. Rxd3 {[%clk 0:01:18.2]} 31... Nxf4 {[%clk 0:01:15.8]} 32. Rd7+
{[%clk 0:01:14.7]} 32... Kh6 {[%clk 0:01:16.2]} 33. g3 {[%clk 0:01:11.2]} 33...
Nh3+ {[%clk 0:01:00.7]} 34. Kf1 {[%clk 0:01:12.7]} 34... Re3 {[%clk 0:01:01.5]}
35. Rdd6 {[%clk 0:01:07.6]} 35... Rf3+ {[%clk 0:01:02.6]} 36. Ke1 {[%clk
0:01:08.2]} 36... Re3+ {[%clk 0:01:00.4]} 37. Kd2 {[%clk 0:01:07.6]} 37... Rf3
{[%clk 0:01:01.2]} 38. Rxg6+ {[%clk 0:01:09.2]} 38... Kh7 {[%clk 0:01:02.6]} 39.
Rgd6 {[%clk 0:01:06.4]} 1-0

[Event "*** Titled Tuesday 3|2 Blitz (Early)"]
[Site "Chess.com"]
[Date "2016.12.06"]
[Round "2"]
[White "Iball95"]
[Black "Harbuzi01"]
[Result "1/2-1/2"]
[WhiteElo "2481"]
[BlackElo "2691"]
[TimeControl "180+2"]
[EndTime "11:19:46 PST"]
[Termination "Game drawn by repetition"]

1. e4 {[%clk 0:03:02]} 1... e5 {[%clk 0:02:58.5]} 2. Nf3 {[%clk 0:03:02.7]} 2...
Nc6 {[%clk 0:02:59.6]} 3. Nc3 {[%clk 0:03:04.3]} 3... Nf6 {[%clk 0:03:00]} 4.
Bb5 {[%clk 0:03:05.9]} 4... Be7 {[%clk 0:03:00]} 5. Bxc6 {[%clk 0:03:06]} 5...
dxc6 {[%clk 0:02:57.6]} 6. Nxe5 {[%clk 0:02:51.8]} 6... Nxe4 {[%clk 0:02:58.4]}
7. Nxe4 {[%clk 0:02:53.7]} 7... Qd5 {[%clk 0:02:58.6]} 8. O-O {[%clk 0:02:53.8]}
8... Qxe5 {[%clk 0:02:57.7]} 9. Re1 {[%clk 0:02:54.7]} 9... Be6 {[%clk
0:02:56.6]} 10. d4 {[%clk 0:02:54.8]} 10... Qa5 {[%clk 0:02:54.9]} 11. Bd2
{[%clk 0:02:54]} 11... Qb6 {[%clk 0:02:52.5]} 12. Ng5 {[%clk 0:02:43.4]} 12...
Bxg5 {[%clk 0:02:51.3]} 13. Bxg5 {[%clk 0:02:45.3]} 13... O-O {[%clk 0:02:52.7]}
14. b3 {[%clk 0:02:42.1]} 14... Rfe8 {[%clk 0:02:52.6]} 15. c3 {[%clk
0:02:39.6]} 15... c5 {[%clk 0:02:50.2]} 16. Be3 {[%clk 0:02:37.4]} 16... cxd4
{[%clk 0:02:49]} 17. Bxd4 {[%clk 0:02:39.3]} 17... c5 {[%clk 0:02:49.8]} 18. Be3
{[%clk 0:02:40.2]} 18... Qc6 {[%clk 0:02:50.5]} 19. Qh5 {[%clk 0:02:37.3]} 19...
b6 {[%clk 0:02:48.1]} 20. Rad1 {[%clk 0:02:35.7]} 20... Rad8 {[%clk 0:02:48.6]}
21. Qg5 {[%clk 0:02:33.2]} 21... f6 {[%clk 0:02:47.6]} 22. Qg3 {[%clk
0:02:32.5]} 22... Rd5 {[%clk 0:02:40.2]} 23. c4 {[%clk 0:02:16.9]} 23... Rd7
{[%clk 0:02:39]} 24. h3 {[%clk 0:02:10.5]} 24... Red8 {[%clk 0:02:38.4]} 25.
Rxd7 {[%clk 0:02:11.1]} 25... Qxd7 {[%clk 0:02:39.4]} 26. Bf4 {[%clk 0:02:07.9]}
26... Bf7 {[%clk 0:02:38.8]} 27. Qf3 {[%clk 0:02:04.3]} 27... Qd3 {[%clk
0:02:28.4]} 28. Qxd3 {[%clk 0:02:01.6]} 28... Rxd3 {[%clk 0:02:29]} 29. Re7
{[%clk 0:02:02.5]} 29... g5 {[%clk 0:02:26.4]} 30. Bb8 {[%clk 0:01:49.1]} 30...
a5 {[%clk 0:02:27]} 31. Rb7 {[%clk 0:01:48.1]} 31... Rd1+ {[%clk 0:02:21]} 32.
Kh2 {[%clk 0:01:48.8]} 32... Rd2 {[%clk 0:02:22.6]} 33. f3 {[%clk 0:01:42.7]}
33... Rxa2 {[%clk 0:02:21.3]} 34. Rxb6 {[%clk 0:01:43.8]} 34... a4 {[%clk
0:02:22.5]} 35. bxa4 {[%clk 0:01:44.3]} 35... Rxa4 {[%clk 0:02:22.8]} 36. Rxf6
{[%clk 0:01:35.9]} 36... Rxc4 {[%clk 0:02:23.1]} 37. Rf5 {[%clk 0:01:35.6]}
37... h6 {[%clk 0:02:22.6]} 38. Ba7 {[%clk 0:01:31.4]} 38... Kg7 {[%clk
0:02:20.4]} 39. Rxc5 {[%clk 0:00:49.4]} 39... Rxc5 {[%clk 0:02:20.6]} 40. Bxc5
{[%clk 0:00:51.3]} 40... Kg6 {[%clk 0:02:19.6]} 41. Kg3 {[%clk 0:00:51.4]} 41...
Be6 {[%clk 0:02:20.8]} 42. h4 {[%clk 0:00:52.5]} 42... Bd5 {[%clk 0:02:13.2]}
43. Kg4 {[%clk 0:00:48.9]} 43... Be6+ {[%clk 0:02:12]} 44. Kg3 {[%clk
0:00:49.4]} 44... Bd5 {[%clk 0:02:11.2]} 45. Be3 {[%clk 0:00:50.2]} 45... Be6
{[%clk 0:02:08.6]} 46. Bf2 {[%clk 0:00:47.8]} 46... Bd5 {[%clk 0:02:08.2]} 47.
Kh2 {[%clk 0:00:48.3]} 47... Be6 {[%clk 0:02:08.8]} 48. Kg1 {[%clk 0:00:49.3]}
48... Bd5 {[%clk 0:02:09.3]} 49. Bg3 {[%clk 0:00:50.6]} 49... Kh5 {[%clk
0:02:07.6]} 50. hxg5 {[%clk 0:00:51]} 50... hxg5 {[%clk 0:02:09.5]} 51. Be5
{[%clk 0:00:49.5]} 51... g4 {[%clk 0:02:05.7]} 52. f4 {[%clk 0:00:50]} 52... Kg6
{[%clk 0:02:06.8]} 53. Kf2 {[%clk 0:00:50.5]} 53... Kf5 {[%clk 0:02:07.7]} 54.
g3 {[%clk 0:00:51.8]} 54... Bc6 {[%clk 0:02:08.5]} 55. Ba1 {[%clk 0:00:53.7]}
55... Bd5 {[%clk 0:02:09.8]} 56. Be5 {[%clk 0:00:55.6]} 56... Bc6 {[%clk
0:02:11]} 57. Ba1 {[%clk 0:00:57.5]} 57... Bd5 {[%clk 0:02:12.2]} 58. Be5 {[%clk
0:00:59.4]} 1/2-1/2

[Event "*** Titled Tuesday 3|2 Blitz (Early)"]
[Site "Chess.com"]
[Date "2016.12.06"]
[Round "2"]
[White "SidArun"]
[Black "alturas_pacificas"]
[Result "0-1"]
[WhiteElo "2079"]
[BlackElo "2165"]
[TimeControl "180+2"]
[EndTime "11:19:47 PST"]
[Termination "alturas_pacificas won by resignation"]

1. e4 {[%clk 0:03:02]} 1... e5 {[%clk 0:02:59.4]} 2. f4 {[%clk 0:03:03.1]} 2...
Bc5 {[%clk 0:02:59.8]} 3. Nf3 {[%clk 0:03:03.9]} 3... d6 {[%clk 0:03:01]} 4. Nc3
{[%clk 0:03:04]} 4... Nf6 {[%clk 0:02:58.1]} 5. d4 {[%clk 0:03:02.9]} 5... exd4
{[%clk 0:02:56.2]} 6. Nxd4 {[%clk 0:03:02.5]} 6... O-O {[%clk 0:02:55.6]} 7. Be3
{[%clk 0:02:56.9]} 7... Re8 {[%clk 0:02:53.3]} 8. Bd3 {[%clk 0:02:50.1]} 8...
Bxd4 {[%clk 0:02:33]} 9. Bxd4 {[%clk 0:02:50.1]} 9... Nxe4 {[%clk 0:02:34.5]}
10. Nxe4 {[%clk 0:02:35.3]} 10... Bf5 {[%clk 0:02:31.7]} 11. O-O {[%clk
0:02:28.9]} 11... Bxe4 {[%clk 0:02:29.9]} 12. Qg4 {[%clk 0:02:25.4]} 12... f6
{[%clk 0:02:14.5]} 13. Rfe1 {[%clk 0:02:22]} 13... d5 {[%clk 0:02:08.1]} 14.
Bxe4 {[%clk 0:01:40.5]} 14... dxe4 {[%clk 0:02:04.9]} 15. c3 {[%clk 0:01:41.7]}
15... Nc6 {[%clk 0:02:03.1]} 16. Rad1 {[%clk 0:01:42.8]} 16... Qe7 {[%clk
0:01:55.3]} 17. Qf5 {[%clk 0:01:43.1]} 17... Rad8 {[%clk 0:01:51.4]} 18. Qb5
{[%clk 0:01:09.2]} 18... Nxd4 {[%clk 0:01:48]} 19. cxd4 {[%clk 0:01:09.7]} 19...
c6 {[%clk 0:01:46.8]} 20. Qc4+ {[%clk 0:01:10]} 20... Qe6 {[%clk 0:01:42.9]} 21.
Qc2 {[%clk 0:01:02.3]} 21... f5 {[%clk 0:01:40.5]} 22. b3 {[%clk 0:01:02.3]}
22... Rd5 {[%clk 0:01:39.3]} 23. Rd2 {[%clk 0:00:56.7]} 23... Qd6 {[%clk
0:01:35.2]} 24. Qc3 {[%clk 0:00:53.8]} 24... Qxf4 {[%clk 0:01:32.9]} 25. Rf1
{[%clk 0:00:53.9]} 25... Qd6 {[%clk 0:01:32.2]} 26. Rdf2 {[%clk 0:00:55]} 26...
g6 {[%clk 0:01:32.1]} 27. g4 {[%clk 0:00:55.2]} 27... e3 {[%clk 0:01:23.9]} 28.
Rf3 {[%clk 0:00:49.9]} 28... e2 {[%clk 0:01:22.8]} 29. Re1 {[%clk 0:00:47.5]}
29... fxg4 {[%clk 0:01:17]} 30. Re3 {[%clk 0:00:48.7]} 30... Rxe3 {[%clk
0:01:06.4]} 31. Qxe3 {[%clk 0:00:49.1]} 31... Rxd4 {[%clk 0:01:04.8]} 32. Rxe2
{[%clk 0:00:41.8]} 32... Rd1+ {[%clk 0:01:00.8]} 33. Kg2 {[%clk 0:00:33.1]}
33... Qd5+ {[%clk 0:01:00.1]} 34. Kg3 {[%clk 0:00:29.8]} 34... Rd3 {[%clk
0:00:58.8]} 0-1

[Event "*** Titled Tuesday 3|2 Blitz (Early)"]
[Site "Chess.com"]
[Date "2016.12.06"]
[Round "2"]
[White "calemcc"]
[Black "Saitama_Hero"]
[Result "0-1"]
[WhiteElo "2124"]
[BlackElo "2142"]
[TimeControl "180+2"]
[EndTime "11:20:09 PST"]
[Termination "Saitama_Hero won by resignation"]

1. d4 {[%clk 0:03:02]} 1... f5 {[%clk 0:02:55.4]} 2. c4 {[%clk 0:03:03.9]} 2...
Nf6 {[%clk 0:02:55.4]} 3. Nf3 {[%clk 0:03:04]} 3... e6 {[%clk 0:02:56.9]} 4. g3
{[%clk 0:03:05.4]} 4... d5 {[%clk 0:02:53.9]} 5. Bg2 {[%clk 0:03:06.6]} 5... c6
{[%clk 0:02:54.1]} 6. b3 {[%clk 0:03:07.5]} 6... Bd6 {[%clk 0:02:52.8]} 7. O-O
{[%clk 0:03:08.8]} 7... Qe7 {[%clk 0:02:53.3]} 8. Bb2 {[%clk 0:03:09.6]} 8...
O-O {[%clk 0:02:53.1]} 9. Qc1 {[%clk 0:03:11.2]} 9... a5 {[%clk 0:02:31.4]} 10.
Ba3 {[%clk 0:03:10.4]} 10... a4 {[%clk 0:02:28.5]} 11. Ne5 {[%clk 0:02:58.3]}
11... Nbd7 {[%clk 0:01:59.7]} 12. f4 {[%clk 0:02:54.6]} 12... c5 {[%clk
0:01:52.9]} 13. e3 {[%clk 0:02:51.3]} 13... cxd4 {[%clk 0:01:41.2]} 14. exd4
{[%clk 0:02:51]} 14... Ne4 {[%clk 0:01:42.8]} 15. Bxd6 {[%clk 0:02:39.1]} 15...
Qxd6 {[%clk 0:01:41]} 16. Nc3 {[%clk 0:02:41]} 16... Nxe5 {[%clk 0:01:36.5]} 17.
dxe5 {[%clk 0:02:38.4]} 17... Qc5+ {[%clk 0:01:30.2]} 18. Kh1 {[%clk 0:02:38.3]}
18... Nf2+ {[%clk 0:01:27.7]} 19. Rxf2 {[%clk 0:02:39.6]} 19... Qxf2 {[%clk
0:01:25.7]} 20. cxd5 {[%clk 0:02:41]} 20... axb3 {[%clk 0:01:26.3]} 21. axb3
{[%clk 0:02:39]} 21... Rxa1 {[%clk 0:01:21]} 22. Qxa1 {[%clk 0:02:38.5]} 22...
Bd7 {[%clk 0:01:15.7]} 23. Qd1 {[%clk 0:01:49.5]} 23... Rc8 {[%clk 0:01:10.8]}
24. dxe6 {[%clk 0:01:02.2]} 24... Bxe6 {[%clk 0:01:09.1]} 25. Bd5 {[%clk
0:00:38.1]} 25... Bxd5+ {[%clk 0:01:03.6]} 26. Nxd5 {[%clk 0:00:40]} 26... Kf7
{[%clk 0:00:35.8]} 27. Nb4 {[%clk 0:00:26]} 27... Rd8 {[%clk 0:00:34.4]} 28. Qc1
{[%clk 0:00:17]} 28... Qe2 {[%clk 0:00:30]} 29. Kg1 {[%clk 0:00:15.2]} 29...
Rd1+ {[%clk 0:00:26]} 30. Qxd1 {[%clk 0:00:16.8]} 30... Qxd1+ {[%clk 0:00:27.2]}
31. Kf2 {[%clk 0:00:18.3]} 31... Qd2+ {[%clk 0:00:26.9]} 32. Kg1 {[%clk
0:00:20.2]} 32... Qxb4 {[%clk 0:00:27.6]} 33. Kg2 {[%clk 0:00:22.1]} 33... Qxb3
{[%clk 0:00:29]} 0-1